lending/lending_fUSD_20250131
["ID","MTS","AMOUNT","RATE_DAILY","PERIOD"]
[351043881,1738306248377,-1712.2,0.00019315,3]
[351043882,1738306248387,-3227.95,0.00019315,3]
[351043883,1738306248396,-500.0,0.00019315,3]
[351043884,1738306248406,-698.07,0.00019315,3]
[351043885,1738306248415,-500.0,0.00019315,3]
[351043886,1738306248425,-1637.86,0.00019315,3]
[351043887,1738306248435,-1085.18,0.00019315,3]
[351043888,1738306248445,-636.13,0.00019315,3]
[351043889,1738306248454,-662.78,0.00019315,3]
[351043890,1738306248464,-6654.01,0.00019315,3]
[351043891,1738306248474,-500.0,0.00019315,3]
[351043892,1738306248484,-4419.8,0.00019315,3]
[351043893,1738306248494,-500.0,0.00019315,3]
[351043894,1738306248503,-2914.04,0.00019315,3]
[351043895,1738306248513,-500.0,0.00019315,3]
[351043896,1738306248523,-1271.68,0.00019315,3]
[351043897,1738306248533,-922.13,0.00019315,3]
[351043898,1738306248543,-565.31472456,0.00019315,3]
[351043899,1738306248552,-500.0,0.00019315,3]
[351043900,1738306248562,-795.93,0.00019315,3]
[351043901,1738306248572,-535.94,0.00019315,3]
[351043902,1738306248581,-674.93,0.00019315,3]
[351043903,1738306248591,-7050.63,0.00019315,3]
[351043904,1738306248600,-2874.0,0.00019315,3]
[351043905,1738306248609,-1253.83,0.00019315,3]
[351043906,1738306248619,-878.83,0.00019315,3]
[351043907,1738306248629,-4857.43,0.00019315,3]
[351043908,1738306248638,-2490.49,0.00019315,3]
[351043909,1738306248647,-1106.34,0.00019315,3]
[351043910,1738306248656,-848.25,0.00019315,3]
[351043911,1738306248666,-500.0,0.00019315,3]
[351043912,1738306248675,-5756.47,0.00019315,3]
[351043913,1738306248686,-789.12,0.00019315,3]
[351043914,1738306248696,-2234.81,0.00019315,3]
[351043915,1738306248706,-6250.12,0.00019315,3]
[351043916,1738306248716,-500.0,0.00019315,3]
[351043917,1738306248726,-500.0,0.00019315,3]
[351043918,1738306248735,-500.0,0.00019315,3]
[351043919,1738306248745,-709.82,0.00019315,3]
[351043920,1738306248755,-640.66,0.00019315,2]
[351043921,1738306248764,-3870.78,0.00019315,3]
[351043922,1738306248774,-2292.42,0.00019315,3]
[351043923,1738306248783,-3696.7,0.00019315,3]
[351043924,1738306248793,-500.0,0.00019315,3]
[351043925,1738306248804,-1183.26,0.00019315,3]
[351043926,1738306248814,-6297.68,0.00019315,3]
[351043927,1738306248823,-500.0,0.00019315,3]
[351043928,1738306248833,-500.0,0.00019315,3]
[351043929,1738306248843,-500.0,0.00019315,3]
[351043930,1738306248853,-503.64,0.00019315,3]
[351043931,1738306248864,-1370.04,0.00019315,3]
[351043932,1738306248875,-1253.5,0.00019315,3]
[351043933,1738306248885,-500.0,0.00019315,3]
[351043934,1738306248895,-5825.14,0.00019315,3]
[351043935,1738306248905,-2653.46,0.00019315,3]
[351043936,1738306248915,-500.0,0.00019315,3]
[351043937,1738306248926,-3929.43,0.00019315,3]
[351043938,1738306248937,-1666.5,0.00019315,3]
[351043939,1738306248950,-500.0,0.00019315,3]
[351043940,1738306248960,-2750.04,0.00019315,3]
[351043941,1738306248971,-507.03535548,0.00019315,3]
[351043942,1738306248982,-500.0,0.00019315,3]
[351043943,1738306248992,-2244.68,0.00019315,3]
[351043944,1738306249006,-1164.08,0.00019315,3]
[351043945,1738306249016,-2391.97,0.00019315,3]
[351043946,1738306249027,-500.0,0.00019315,3]
[351043947,1738306249036,-3028.69,0.00019315,3]
[351043948,1738306249047,-3515.3,0.00019315,3]
[351043949,1738306249057,-2135.03,0.00019315,3]
[351043950,1738306249068,-3198.65,0.00019315,3]
[351043951,1738306249081,-500.0,0.00019315,3]
[351043952,1738306249091,-1116.45,0.00019315,3]
[351043953,1738306249101,-1464.88,0.00019315,3]
[351043954,1738306249111,-500.0,0.00019315,3]
[351043955,1738306249122,-732.68,0.00019315,3]
[351043956,1738306249132,-721.78,0.00019315,3]
[351043957,1738306249142,-1706.56,0.00019315,3]
[351043958,1738306249152,-1804.53,0.00019315,3]
[351043959,1738306249161,-7789.26,0.00019315,3]
[351043960,1738306249171,-500.0,0.00019315,3]
[351043961,1738306249182,-816.3,0.00019315,3]
[351043962,1738306249192,-1185.11,0.00019315,3]
[351043963,1738306249203,-500.0,0.00019315,3]
[351043964,1738306249213,-500.0,0.00019315,3]
[351043965,1738306249223,-2669.85,0.00019315,3]
[351043966,1738306249233,-500.0,0.00019315,3]
[351043967,1738306249243,-1265.83,0.00019315,3]
[351043968,1738306249253,-1014.36,0.00019315,3]
[351043969,1738306249262,-532.0,0.00019315,3]
[351043970,1738306249273,-2661.46,0.00019315,3]
[351043971,1738306249283,-500.0,0.00019315,3]
[351043972,1738306249292,-5046.06,0.00019315,3]
[351043973,1738306249302,-878.62,0.00019315,3]
[351043974,1738306249312,-188.33460989,0.00019315,3]
[351043975,1738306249322,-2962.42,0.00019315,3]
[351043976,1738306249333,-915.16,0.00019315,3]
[351043977,1738306249343,-3780.57,0.00019315,3]
[351043978,1738306249353,-1587.96,0.00019315,3]
[351043979,1738306249363,-1627.91,0.00019315,3]
[351043980,1738306249374,-500.0,0.00019315,3]
[351043981,1738306249384,-525.19913162,0.00019315,3]
[351043982,1738306249394,-760.33,0.00019315,3]
[351043983,1738306249404,-925.73,0.00019315,3]
[351043984,1738306249414,-1648.54,0.00019315,3]
[351043985,1738306249424,-1648.91,0.00019315,3]
[351043986,1738306249434,-500.0,0.00019315,3]
[351043987,1738306249445,-981.99,0.00019315,3]
[351043988,1738306249455,-500.0,0.00019315,3]
[351043989,1738306249464,-195.7858553,0.00019315,3]
[351043990,1738306249475,-500.0,0.00019315,3]
[351043991,1738306249485,-1292.12,0.00019315,3]
[351043992,1738306249495,-1799.13,0.00019315,3]
[351043993,1738306249505,-776.44,0.00019315,3]
[351043994,1738306249514,-2207.59,0.00019315,3]
[351043995,1738306249528,-500.0,0.00019315,3]
[351043996,1738306249539,-559.42,0.00019315,3]
[351043997,1738306249550,-1741.92,0.00019315,3]
[351043998,1738306249560,-1064.84,0.00019315,3]
[351043999,1738306249570,-500.0,0.00019315,3]
[351044000,1738306249580,-3067.11,0.00019315,3]
[351044001,1738306249590,-609.2,0.00019315,3]
[351044002,1738306249601,-4674.57,0.00019315,3]
[351044003,1738306249611,-686.33,0.00019315,3]
[351044004,1738306249621,-500.0,0.00019315,3]
[351044005,1738306249632,-2396.66,0.00019315,3]
[351044006,1738306249642,-905.59,0.00019315,3]
[351044007,1738306249653,-500.0,0.00019315,3]
[351044008,1738306249663,-500.0,0.00019315,3]
[351044009,1738306249673,-369.5,0.00019315,2]
[351044010,1738306249684,-500.0,0.00019362,2]
[351044011,1738306249694,-1465.65645091,0.00019365,2]
[351044012,1738306249704,-500.0,0.00019373,2]
[351044013,1738306249714,-4308.87172391,0.00019432,2]
[351044014,1738306249724,-768.34,0.0001945,3]
[351044015,1738306249735,-768.34,0.00019451,3]
[351044016,1738306249745,-500.0,0.00019452,3]
[351044017,1738306249755,-500.0,0.00019452,3]
[351044018,1738306249765,-500.0,0.00019452,3]
[351044019,1738306249775,-500.0,0.00019452,3]
[351044020,1738306249786,-500.0,0.00019452,3]
[351044021,1738306249796,-500.0,0.00019452,3]
[351044022,1738306249806,-500.0,0.00019452,3]
[351044023,1738306249816,-500.0,0.00019452,3]
[351044024,1738306249826,-500.0,0.00019452,3]
[351044025,1738306249836,-500.0,0.00019452,3]
[351044026,1738306249847,-500.0,0.00019452,3]
[351044027,1738306249857,-520.76430932,0.00019452,3]
[351044028,1738306249870,-500.0,0.00019452,3]
[351044029,1738306249880,-500.0,0.00019452,3]
[351044030,1738306249891,-618.9,0.00019452,3]
[351044031,1738306249901,-502.56219392,0.00019452,3]
[351044032,1738306249912,-500.0,0.00019452,3]
[351044033,1738306249922,-500.0,0.00019452,3]
[351044034,1738306249932,-500.0,0.00019452,3]
[351044035,1738306249943,-164.67129063,0.00019452,3]
[351044036,1738306249953,-500.0,0.00019452,3]
[351044037,1738306249963,-500.0,0.00019452,3]
[351044038,1738306249973,-602.48,0.00019452,3]
[351044039,1738306249984,-839.47,0.00019452,3]
[351044040,1738306249994,-500.0,0.00019452,3]
[351044041,1738306250007,-504.54,0.00019452,3]
[351044042,1738306250018,-500.0,0.00019452,3]
[351044043,1738306250030,-500.0,0.00019452,3]
[351044044,1738306250041,-524.85,0.00019452,3]
[351044045,1738306250051,-593.95,0.00019452,3]
[351044046,1738306250062,-500.0,0.00019452,3]
[351044047,1738306250073,-500.0,0.00019452,3]
[351044048,1738306250084,-500.0,0.00019452,3]
[351044049,1738306250095,-500.0,0.00019452,3]
[351044050,1738306250105,-2153.056468,0.00019452,3]
[351044051,1738306250116,-832.59,0.00019452,3]
[351044052,1738306250126,-500.0,0.00019452,3]
[351044053,1738306250137,-153.492444,0.00019452,3]
[351044054,1738306250149,-906.17,0.00019452,3]
[351044055,1738306250159,-500.0,0.00019452,3]
[351044056,1738306250170,-500.0,0.00019452,3]
[351044057,1738306250181,-500.0,0.00019452,3]
[351044058,1738306250191,-504.36370545,0.00019452,3]
[351044059,1738306250201,-650.25,0.00019452,3]
[351044060,1738306250211,-1066.56,0.00019452,3]
[351044061,1738306250221,-1499.477048,0.00019452,3]
[351044062,1738306250231,-500.0,0.00019452,3]
[351044063,1738306250241,-500.0,0.00019452,3]
[351044064,1738306250251,-500.0,0.00019452,3]
[351044065,1738306250261,-630.99328071,0.00019452,3]
[351044066,1738306250271,-500.0,0.00019452,3]
[351044067,1738306250281,-500.0,0.00019452,3]
[351044068,1738306250290,-500.0,0.00019452,3]
[351044069,1738306250300,-500.0,0.00019452,3]
[351044070,1738306250310,-717.04,0.00019452,3]
[351044071,1738306250320,-500.0,0.00019452,3]
[351044072,1738306250332,-500.0,0.00019452,3]
[351044073,1738306250343,-506.67267286,0.00019452,3]
[351044074,1738306250353,-500.0,0.00019452,3]
[351044075,1738306250363,-500.0,0.00019452,3]
[351044076,1738306250375,-500.0,0.00019452,3]
[351044077,1738306250386,-500.0,0.00019452,3]
[351044078,1738306250396,-634.07,0.00019452,3]
[351044079,1738306250405,-975.34,0.00019452,3]
[351044080,1738306250415,-500.0,0.00019452,3]
[351044081,1738306250426,-500.0,0.00019452,3]
[351044082,1738306250438,-500.0,0.00019452,3]
[351044083,1738306250449,-500.0,0.00019452,3]
[351044084,1738306250459,-500.0,0.00019452,3]
[351044085,1738306250469,-500.0,0.00019452,3]
[351044086,1738306250479,-666.34,0.00019452,3]
[351044087,1738306250489,-678.47,0.00019452,3]
[351044088,1738306250499,-662.92,0.00019452,3]
[351044089,1738306250510,-500.0,0.00019452,3]
[351044090,1738306250520,-500.0,0.00019452,3]
[351044091,1738306250530,-500.0,0.00019452,3]
[351044092,1738306250540,-702.33,0.00019452,3]
[351044093,1738306250550,-1117.45,0.00019452,3]
[351044094,1738306250560,-604.08,0.00019452,3]
[351044095,1738306250570,-500.0,0.00019452,3]
[351044096,1738306250579,-1293.05,0.00019452,3]
[351044097,1738306250589,-542.25,0.00019452,3]
[351044098,1738306250599,-960.27,0.00019452,3]
[351044099,1738306250608,-500.0,0.00019452,3]
[351044100,1738306250619,-500.0,0.00019452,3]
[351044101,1738306250629,-568.51,0.00019452,3]
[351044102,1738306250638,-718.36,0.00019452,3]
[351044103,1738306250648,-500.0,0.00019452,3]
[351044104,1738306250658,-1056.78,0.00019452,3]
[351044105,1738306250668,-500.0,0.00019452,3]
[351044106,1738306250679,-581.44,0.00019452,3]
[351044107,1738306250689,-678.95,0.00019452,3]
[351044108,1738306250700,-500.0,0.00019452,3]
[351044109,1738306250710,-500.0,0.00019452,3]
[351044110,1738306250720,-500.0,0.00019452,3]
[351044111,1738306250730,-500.0,0.00019452,3]
[351044112,1738306250740,-859.88,0.00019452,3]
[351044113,1738306250750,-500.0,0.00019452,3]
[351044114,1738306250760,-500.0,0.00019452,3]
[351044115,1738306250770,-1253.69,0.00019452,3]
[351044116,1738306250780,-500.0,0.00019452,3]
[351044117,1738306250792,-500.0,0.00019452,3]
[351044118,1738306250802,-500.0,0.00019452,3]
[351044119,1738306250812,-500.0,0.00019452,3]
[351044120,1738306250822,-709.31,0.00019452,3]
[351044121,1738306250831,-500.0,0.00019452,3]
[351044122,1738306250842,-592.15,0.00019452,3]
[351044123,1738306250855,-500.0,0.00019452,3]
[351044124,1738306250865,-507.88421932,0.00019452,3]
[351044125,1738306250876,-500.0,0.00019452,3]
[351044126,1738306250890,-616.48,0.00019452,3]
[351044127,1738306250900,-500.0,0.00019452,3]
[351044128,1738306250910,-1153.93,0.00019452,3]
[351044129,1738306250920,-536.54,0.00019452,3]
[351044130,1738306250930,-560.68,0.00019452,3]
[351044131,1738306250942,-707.1,0.00019452,3]
[351044132,1738306250952,-500.0,0.00019452,3]
[351044133,1738306250962,-839.24,0.00019452,3]
[351044134,1738306250974,-500.0,0.00019452,3]
[351044135,1738306250983,-500.0,0.00019452,3]
[351044136,1738306250993,-500.0,0.00019452,3]
[351044137,1738306251008,-500.0,0.00019452,3]
[351044138,1738306251017,-500.0,0.00019452,3]
[351044139,1738306251027,-728.4,0.00019452,3]
[351044140,1738306251037,-1433.98,0.00019452,3]
[351044141,1738306251048,-536.85,0.00019452,3]
[351044142,1738306251058,-500.0,0.00019452,3]
[351044143,1738306251068,-997.28,0.00019452,3]
[351044144,1738306251079,-1167.42,0.00019452,3]
[351044145,1738306251090,-500.0,0.00019452,3]
[351044146,1738306251100,-500.0,0.00019452,3]
[351044147,1738306251109,-500.0,0.00019452,3]
[351044148,1738306251119,-628.24,0.00019452,3]
[351044149,1738306251129,-1006.28,0.00019452,3]
[351044150,1738306251138,-500.0,0.00019452,3]
[351044151,1738306251148,-500.0,0.00019452,3]
[351044152,1738306251158,-1033.67,0.00019452,3]
[351044153,1738306251168,-501.39,0.00019452,3]
[351044154,1738306251178,-500.0,0.00019452,3]
[351044155,1738306251188,-500.0,0.00019452,3]
[351044156,1738306251201,-500.0,0.00019452,3]
[351044157,1738306251211,-500.0,0.00019452,3]
[351044158,1738306251221,-541.07,0.00019452,3]
[351044159,1738306251230,-1146.06,0.00019452,3]
[351044160,1738306251241,-500.0,0.00019452,3]
[351044161,1738306251250,-500.0,0.00019452,3]
[351044162,1738306251260,-500.0,0.00019452,3]
[351044163,1738306251270,-538.76,0.00019452,3]
[351044164,1738306251281,-500.0,0.00019452,3]
[351044165,1738306251293,-629.83,0.00019452,3]
[351044166,1738306251578,-500.0,0.00019452,3]
[351044167,1738306251589,-500.0,0.00019452,3]
[351044168,1738306251599,-500.0,0.00019452,3]
[351044169,1738306251609,-563.8,0.00019452,3]
[351044170,1738306251618,-500.0,0.00019452,3]
[351044171,1738306251627,-612.23,0.00019452,3]
[351044172,1738306251637,-500.0,0.00019452,3]
[351044173,1738306251647,-500.0,0.00019452,3]
[351044174,1738306251657,-1133.72,0.00019452,3]
[351044175,1738306251666,-500.0,0.00019452,3]
[351044176,1738306251676,-728.69,0.00019452,3]
[351044177,1738306251685,-587.4811993,0.00019452,3]
[351044178,1738306251696,-1066.0,0.00019452,3]
[351044179,1738306251706,-1104.72,0.00019452,3]
[351044180,1738306251715,-502.71,0.00019452,3]
[351044181,1738306251725,-806.0,0.00019452,3]
[351044182,1738306251735,-500.0,0.00019452,3]
[351044183,1738306251744,-409.5284675,0.00019452,3]
[351044184,1738306251754,-500.0,0.00019452,3]
[351044185,1738306251763,-500.0,0.00019452,3]
[351044186,1738306251778,-500.0,0.00019452,3]
[351044187,1738306251789,-516.74,0.00019452,3]
[351044188,1738306251799,-500.0,0.00019452,3]
[351044189,1738306251808,-1115.4,0.00019452,3]
[351044190,1738306251818,-500.0,0.00019452,3]
[351044191,1738306251828,-726.75,0.00019452,3]
[351044192,1738306251838,-755.18,0.00019452,3]
[351044193,1738306251848,-500.0,0.00019452,3]
[351044194,1738306251858,-618.65,0.00019452,3]
[351044195,1738306251867,-917.2,0.00019452,3]
[351044196,1738306251876,-514.87950824,0.00019452,3]
[351044197,1738306251886,-847.88,0.00019452,3]
[351044198,1738306251895,-1239.48,0.00019452,3]
[351044199,1738306251906,-500.0,0.00019452,3]
[351044200,1738306251915,-500.0,0.00019452,3]
[351044201,1738306251924,-633.32,0.00019452,3]
[351044202,1738306251934,-1824.23,0.00019452,3]
[351044203,1738306251945,-500.0,0.00019452,3]
[351044204,1738306251955,-365.56221886,0.00019452,3]
[351044205,1738306251964,-500.0,0.00019452,3]
[351044206,1738306251974,-500.0,0.00019452,3]
[351044207,1738306251984,-500.0,0.00019452,3]
[351044208,1738306251993,-500.0,0.00019452,3]
[351044209,1738306252005,-500.0,0.00019452,3]
[351044210,1738306252015,-821.59,0.00019452,3]
[351044211,1738306252025,-500.0,0.00019452,3]
[351044212,1738306252034,-500.0,0.00019452,3]
[351044213,1738306252044,-500.0,0.00019452,3]
[351044214,1738306252055,-1462.22,0.00019452,3]
[351044215,1738306252065,-500.0,0.00019452,3]
[351044216,1738306252075,-500.0,0.00019452,3]
[351044217,1738306252085,-815.19,0.00019452,3]
[351044218,1738306252095,-500.0,0.00019452,3]
[351044219,1738306252104,-500.0,0.00019452,3]
[351044220,1738306252114,-500.0,0.00019452,3]
[351044221,1738306252123,-720.68,0.00019452,3]
[351044222,1738306252132,-500.0,0.00019452,3]
[351044223,1738306252142,-1052.43,0.00019452,3]
[351044224,1738306252151,-500.0,0.00019452,3]
[351044225,1738306252161,-500.0,0.00019452,3]
[351044226,1738306252170,-500.0,0.00019452,3]
[351044227,1738306252181,-519.86,0.00019452,3]
[351044228,1738306252191,-500.0,0.00019452,3]
[351044229,1738306252200,-500.0,0.00019452,3]
[351044230,1738306252210,-762.44,0.00019452,3]
[351044231,1738306252219,-500.0,0.00019452,3]
[351044232,1738306252229,-445.09360568,0.00019452,3]
[351044233,1738306252238,-500.0,0.00019452,3]
[351044234,1738306252247,-500.0,0.00019452,3]
[351044235,1738306252256,-500.0,0.00019452,3]
[351044236,1738306252266,-500.0,0.00019452,3]
[351044237,1738306252275,-596.94,0.00019452,3]
[351044238,1738306252284,-500.0,0.00019452,3]
[351044239,1738306252294,-870.85,0.00019452,3]
[351044240,1738306252304,-500.0,0.00019452,3]
[351044241,1738306252313,-3120.26,0.00019452,3]
[351044242,1738306252322,-514.66,0.00019452,3]
[351044243,1738306252332,-237.41437079,0.00019452,3]
[351044244,1738306252341,-500.0,0.00019452,3]
[351044245,1738306252350,-500.0,0.00019452,3]
[351044246,1738306252359,-500.0,0.00019452,3]
[351044247,1738306252368,-1059.42,0.00019452,3]
[351044248,1738306252377,-955.99,0.00019452,3]
[351044249,1738306252387,-920.05,0.00019452,3]
[351044250,1738306252396,-696.01,0.00019452,2]
[351044251,1738306252405,-500.0,0.00019452,3]
[351044252,1738306252415,-500.0,0.00019452,3]
[351044253,1738306252424,-500.0,0.00019452,3]
[351044254,1738306252433,-1737.45,0.00019452,3]
[351044255,1738306252443,-883.16,0.00019452,3]
[351044256,1738306252452,-500.0,0.00019452,3]
[351044257,1738306252461,-2134.12,0.00019452,3]
[351044258,1738306252470,-500.0,0.00019452,3]
[351044259,1738306252479,-839.72,0.00019452,3]
[351044260,1738306252488,-1169.41,0.00019452,3]
[351044261,1738306252497,-1385.09,0.00019452,3]
[351044262,1738306252507,-1394.44,0.00019452,3]
[351044263,1738306252517,-500.0,0.00019452,3]
[351044264,1738306252526,-500.0,0.00019452,3]
[351044265,1738306252536,-3348.08,0.00019452,3]
[351044266,1738306252545,-500.0,0.00019452,3]
[351044267,1738306252555,-500.0,0.00019452,3]
[351044268,1738306252564,-924.15,0.00019452,3]
[351044269,1738306252573,-1127.44,0.00019452,3]
[351044270,1738306252582,-674.08,0.00019452,3]
[351044271,1738306252592,-3250.85,0.00019452,3]
[351044272,1738306252602,-500.0,0.00019452,3]
[351044273,1738306252611,-1133.24,0.00019452,3]
[351044274,1738306252620,-1845.5,0.00019452,3]
[351044275,1738306252629,-500.0,0.00019452,3]
[351044276,1738306252640,-1954.11,0.00019452,3]
[351044277,1738306252649,-500.0,0.00019452,3]
[351044278,1738306252658,-500.0,0.00019452,3]
[351044279,1738306252667,-500.0,0.00019452,3]
[351044280,1738306252677,-500.0,0.00019452,3]
[351044281,1738306252686,-500.0,0.00019452,3]
[351044282,1738306252695,-645.35,0.00019452,3]
[351044283,1738306252705,-942.8,0.00019452,3]
[351044284,1738306252714,-500.0,0.00019452,3]
[351044285,1738306252723,-4610.94,0.00019452,3]
[351044286,1738306252733,-6387.1,0.00019452,3]
[351044287,1738306252742,-594.96,0.00019452,3]
[351044288,1738306252751,-500.0,0.00019452,3]
[351044289,1738306252760,-766.14,0.00019452,3]
[351044290,1738306252769,-519.2,0.00019452,3]
[351044291,1738306252778,-582.14,0.00019452,3]
[351044292,1738306252788,-11987.44,0.00019452,3]
[351044293,1738306252797,-1269.84,0.00019452,3]
[351044294,1738306252807,-500.0,0.00019452,3]
[351044295,1738306252816,-1367.61,0.00019452,3]
[351044296,1738306252825,-937.78,0.00019452,3]
[351044297,1738306252835,-540.26,0.00019452,3]
[351044298,1738306252844,-1640.43,0.00019452,3]
[351044299,1738306252854,-1981.83,0.00019452,3]
[351044300,1738306252864,-8948.91,0.00019452,3]
[351044301,1738306252874,-2567.08,0.00019452,3]
[351044302,1738306252883,-631.98,0.00019452,3]
[351044303,1738306252892,-750.68,0.00019452,3]
[351044304,1738306252902,-2616.13,0.00019452,3]
[351044305,1738306252912,-1071.39,0.00019452,3]
[351044306,1738306252921,-500.0,0.00019452,3]
[351044307,1738306252930,-500.0,0.00019452,3]
[351044308,1738306252939,-1260.83,0.00019452,3]
[351044309,1738306252949,-500.0,0.00019452,3]
[351044310,1738306252958,-2220.27,0.00019452,3]
[351044311,1738306252967,-500.0,0.00019452,3]
[351044312,1738306252977,-500.0,0.00019452,3]
[351044313,1738306252986,-500.0,0.00019452,3]
[351044314,1738306252996,-595.77,0.00019452,3]
[351044315,1738306253009,-500.0,0.00019452,3]
[351044316,1738306253018,-1589.24,0.00019452,3]
[351044317,1738306253028,-1903.2,0.00019452,3]
[351044318,1738306253037,-1712.2,0.00019452,3]
[351044319,1738306253048,-3227.95,0.00019452,3]
[351044320,1738306253058,-500.0,0.00019452,3]
[351044321,1738306253068,-698.07,0.00019452,3]
[351044322,1738306253078,-500.0,0.00019452,3]
[351044323,1738306253088,-1637.86,0.00019452,3]
[351044324,1738306253098,-1085.18,0.00019452,3]
[351044325,1738306253108,-636.13,0.00019452,3]
[351044326,1738306253117,-662.78,0.00019452,3]
[351044327,1738306253126,-6654.01,0.00019452,3]
[351044328,1738306253136,-4419.8,0.00019452,3]
[351044329,1738306253145,-2914.04,0.00019452,3]
[351044330,1738306253155,-500.0,0.00019452,3]
[351044331,1738306253165,-1271.68,0.00019452,3]
[351044332,1738306253175,-922.13,0.00019452,3]
[351044333,1738306253184,-500.0,0.00019452,3]
[351044334,1738306253195,-795.93,0.00019452,3]
[351044335,1738306253204,-535.94,0.00019452,3]
[351044336,1738306253214,-674.93,0.00019452,3]
[351044337,1738306253223,-7050.63,0.00019452,3]
[351044338,1738306253233,-2874.0,0.00019452,3]
[351044339,1738306253243,-1253.83,0.00019452,3]
[351044340,1738306253252,-878.83,0.00019452,3]
[351044341,1738306253262,-4857.43,0.00019452,3]
[351044342,1738306253272,-2490.49,0.00019452,3]
[351044343,1738306253282,-1106.34,0.00019452,3]
[351044344,1738306253292,-848.25,0.00019452,3]
[351044345,1738306253301,-500.0,0.00019452,3]
[351044346,1738306253311,-789.12,0.00019452,3]
[351044347,1738306253320,-5756.47,0.00019452,3]
[351044348,1738306253330,-2234.81,0.00019452,3]
[351044349,1738306253339,-6250.12,0.00019452,3]
[351044350,1738306253349,-500.0,0.00019452,3]
[351044351,1738306253358,-500.0,0.00019452,3]
[351044352,1738306253367,-500.0,0.00019452,3]
[351044353,1738306253377,-709.82,0.00019452,3]
[351044354,1738306253387,-640.66,0.00019452,2]
[351044355,1738306253396,-3870.78,0.00019452,3]
[351044356,1738306253405,-2292.42,0.00019452,3]
[351044357,1738306253415,-3696.7,0.00019452,3]
[351044358,1738306253425,-500.0,0.00019452,3]
[351044359,1738306253435,-1183.26,0.00019452,3]
[351044360,1738306253446,-6297.68,0.00019452,3]
[351044361,1738306253456,-500.0,0.00019452,3]
[351044362,1738306253466,-500.0,0.00019452,3]
[351044363,1738306253476,-500.0,0.00019452,3]
[351044364,1738306253486,-503.64,0.00019452,3]
[351044365,1738306253496,-1370.04,0.00019452,3]
[351044366,1738306253506,-1253.5,0.00019452,3]
[351044367,1738306253516,-500.0,0.00019452,3]
[351044368,1738306253527,-5825.14,0.00019452,3]
[351044369,1738306253537,-2653.46,0.00019452,3]
[351044370,1738306253547,-409.08309865,0.00019452,3]
[351044371,1738306253557,-3929.43,0.00019452,3]
[351044372,1738306253567,-1666.5,0.00019452,3]
[351044373,1738306253576,-500.0,0.00019452,3]
[351044374,1738306253586,-2750.04,0.00019452,3]
[351044375,1738306253596,-500.0,0.00019452,3]
[351044376,1738306253606,-1164.08,0.00019452,3]
[351044377,1738306253615,-2244.68,0.00019452,3]
[351044378,1738306253625,-2391.97,0.00019452,3]
[351044379,1738306253634,-500.0,0.00019452,3]
[351044380,1738306253644,-3028.69,0.00019452,3]